[Event "*** Titled Tuesday Blitz"]
[Site "Chess.com"]
[Date "2021.02.02"]
[Round "3"]
[White "PowerThinking2650"]
[Black "LawrenceTrent"]
[Result "1/2-1/2"]
[WhiteElo "2390"]
[BlackElo "2567"]
[TimeControl "180+1"]
[EndTime "10:31:38 PST"]
[Termination "Game drawn - insufficient material"]

1. e4 {[%clk 0:03:00.9]} 1... c6 {[%clk 0:02:52]} 2. d4 {[%clk 0:03:00.5]} 2...
g6 {[%clk 0:02:52.4]} 3. Nc3 {[%clk 0:03:01.3]} 3... d5 {[%clk 0:02:46.6]} 4. e5
{[%clk 0:03:01]} 4... f6 {[%clk 0:02:45.4]} 5. f4 {[%clk 0:03:00.4]} 5... Nh6
{[%clk 0:02:45.1]} 6. Nf3 {[%clk 0:03:00.3]} 6... Bg7 {[%clk 0:02:45.2]} 7. Bd3
{[%clk 0:03:00]} 7... O-O {[%clk 0:02:45]} 8. O-O {[%clk 0:02:59.9]} 8... Bf5
{[%clk 0:02:44.1]} 9. Kh1 {[%clk 0:02:57.2]} 9... Bxd3 {[%clk 0:02:43.3]} 10.
Qxd3 {[%clk 0:02:58.1]} 10... Na6 {[%clk 0:02:42.6]} 11. Be3 {[%clk 0:02:57]}
11... Nc7 {[%clk 0:02:41.5]} 12. Ne2 {[%clk 0:02:55.9]} 12... Qd7 {[%clk
0:02:30.7]} 13. b3 {[%clk 0:02:54.7]} 13... Qf5 {[%clk 0:02:28.4]} 14. Qd2
{[%clk 0:02:49.2]} 14... fxe5 {[%clk 0:02:22.3]} 15. Nxe5 {[%clk 0:02:32.5]}
15... Bxe5 {[%clk 0:02:06.6]} 16. Ng3 {[%clk 0:02:28.7]} 16... Qe6 {[%clk
0:02:01]} 17. fxe5 {[%clk 0:02:28.3]} 17... Nf5 {[%clk 0:01:58.9]} 18. Nxf5
{[%clk 0:02:21.5]} 18... Rxf5 {[%clk 0:01:59.8]} 19. Bh6 {[%clk 0:02:20.4]}
19... Qf7 {[%clk 0:01:55.8]} 20. Kg1 {[%clk 0:02:15.1]} 20... Ne6 {[%clk
0:01:51.8]} 21. Rxf5 {[%clk 0:02:13.1]} 21... Qxf5 {[%clk 0:01:50.1]} 22. Rf1
{[%clk 0:02:11.4]} 22... Qe4 {[%clk 0:01:50.4]} 23. c3 {[%clk 0:02:10.7]} 23...
c5 {[%clk 0:01:45.1]} 24. Qf2 {[%clk 0:02:07.1]} 24... Qf5 {[%clk 0:01:39.8]}
25. Qh4 {[%clk 0:02:04]} 25... g5 {[%clk 0:01:37]} 26. Rxf5 {[%clk 0:01:08]}
26... gxh4 {[%clk 0:01:34.2]} 27. dxc5 {[%clk 0:01:00.4]} 27... Rc8 {[%clk
0:01:31.6]} 28. b4 {[%clk 0:00:59.5]} 28... b6 {[%clk 0:01:32.2]} 29. cxb6
{[%clk 0:00:43.6]} 29... axb6 {[%clk 0:01:33.1]} 30. Rf3 {[%clk 0:00:40.4]}
30... Ra8 {[%clk 0:01:26.5]} 31. Rd3 {[%clk 0:00:34.3]} 31... Rxa2 {[%clk
0:01:22.8]} 32. Rxd5 {[%clk 0:00:34.3]} 32... Kf7 {[%clk 0:01:19.8]} 33. Rb5
{[%clk 0:00:28.7]} 33... Rc2 {[%clk 0:01:20]} 34. Rxb6 {[%clk 0:00:26.8]} 34...
Rxc3 {[%clk 0:01:20.5]} 35. Rb8 {[%clk 0:00:22]} 35... Kg6 {[%clk 0:01:16.1]}
36. Rb6 {[%clk 0:00:20.5]} 36... Kf5 {[%clk 0:01:14.8]} 37. Rb7 {[%clk
0:00:19.2]} 37... Rc7 {[%clk 0:01:05.1]} 38. Rxc7 {[%clk 0:00:16.7]} 38... Nxc7
{[%clk 0:01:05.3]} 39. Bf8 {[%clk 0:00:15.9]} 39... Nd5 {[%clk 0:01:03.5]} 40.
b5 {[%clk 0:00:15.4]} 40... Kxe5 {[%clk 0:01:03.8]} 41. Kf2 {[%clk 0:00:15.7]}
41... Kd6 {[%clk 0:00:54.8]} 42. Kf3 {[%clk 0:00:15.7]} 42... h5 {[%clk
0:00:50.5]} 43. Ke4 {[%clk 0:00:14.7]} 43... Kc5 {[%clk 0:00:47.9]} 44. Kf5
{[%clk 0:00:13]} 44... Ne3+ {[%clk 0:00:46.5]} 45. Kg5 {[%clk 0:00:12.4]} 45...
Nxg2 {[%clk 0:00:46.5]} 46. Kxh5 {[%clk 0:00:12.3]} 46... Kxb5 {[%clk
0:00:47.1]} 47. Bxe7 {[%clk 0:00:12.5]} 47... Kc4 {[%clk 0:00:46.6]} 48. Bxh4
{[%clk 0:00:12.4]} 48... Kd5 {[%clk 0:00:47.1]} 49. Kg4 {[%clk 0:00:11.7]} 49...
Ke6 {[%clk 0:00:47]} 50. Bg5 {[%clk 0:00:12.2]} 50... Ne1 {[%clk 0:00:46.5]} 51.
h4 {[%clk 0:00:10.7]} 51... Nd3 {[%clk 0:00:47]} 52. h5 {[%clk 0:00:11.3]} 52...
Kf7 {[%clk 0:00:47.5]} 53. h6 {[%clk 0:00:11.8]} 53... Kg8 {[%clk 0:00:47.6]}
54. Kf5 {[%clk 0:00:12.4]} 54... Kh7 {[%clk 0:00:48.5]} 55. Ke4 {[%clk
0:00:12.3]} 55... Nc5+ {[%clk 0:00:48.6]} 56. Kf5 {[%clk 0:00:13.2]} 56... Nd7
{[%clk 0:00:49.2]} 57. Bf4 {[%clk 0:00:13.8]} 57... Nb6 {[%clk 0:00:49.5]} 58.
Ke6 {[%clk 0:00:13.9]} 58... Na4 {[%clk 0:00:50.4]} 59. Be3 {[%clk 0:00:14.5]}
59... Nc3 {[%clk 0:00:50.7]} 60. Bd2 {[%clk 0:00:14.5]} 60... Ne4 {[%clk
0:00:50.1]} 61. Be3 {[%clk 0:00:15.1]} 61... Kg6 {[%clk 0:00:49.8]} 62. Ke5
{[%clk 0:00:15]} 62... Nf6 {[%clk 0:00:49.4]} 63. Ke6 {[%clk 0:00:15.2]} 63...
Ng8 {[%clk 0:00:49.4]} 64. h7 {[%clk 0:00:14.8]} 64... Kxh7 {[%clk 0:00:49.1]}
1/2-1/2

[Event "*** Titled Tuesday Blitz"]
[Site "Chess.com"]
[Date "2021.02.02"]
[Round "3"]
[White "Nozdrachev_Leonid"]
[Black "ukchessbomber"]
[Result "0-1"]
[WhiteElo "2535"]
[BlackElo "2384"]
[TimeControl "180+1"]
[EndTime "10:31:39 PST"]
[Termination "ukchessbomber won on time"]

1. e4 {[%clk 0:03:00.9]} 1... e5 {[%clk 0:03:00.2]} 2. Nf3 {[%clk 0:02:59.8]}
2... Nc6 {[%clk 0:03:00.8]} 3. d4 {[%clk 0:02:59.4]} 3... exd4 {[%clk 0:03:01]}
4. Nxd4 {[%clk 0:02:59.1]} 4... Nf6 {[%clk 0:03:01.5]} 5. Nc3 {[%clk 0:02:56.8]}
5... Bb4 {[%clk 0:03:00.2]} 6. Nxc6 {[%clk 0:02:54.7]} 6... bxc6 {[%clk
0:03:01.1]} 7. Bd3 {[%clk 0:02:54.7]} 7... d5 {[%clk 0:03:01.8]} 8. exd5 {[%clk
0:02:49.3]} 8... cxd5 {[%clk 0:03:02.7]} 9. O-O {[%clk 0:02:46.6]} 9... O-O
{[%clk 0:03:03.2]} 10. a3 {[%clk 0:02:44.8]} 10... Bd6 {[%clk 0:02:53.1]} 11. h3
{[%clk 0:02:42.6]} 11... c6 {[%clk 0:02:52.3]} 12. Na4 {[%clk 0:02:40.9]} 12...
Qc7 {[%clk 0:02:44.3]} 13. c4 {[%clk 0:02:38.1]} 13... dxc4 {[%clk 0:02:29.2]}
14. Bxc4 {[%clk 0:02:37.5]} 14... Rd8 {[%clk 0:02:30.1]} 15. Qf3 {[%clk
0:02:35.4]} 15... Be6 {[%clk 0:02:30.1]} 16. Bxe6 {[%clk 0:02:33.9]} 16... fxe6
{[%clk 0:02:31]} 17. Bg5 {[%clk 0:02:33.9]} 17... Rf8 {[%clk 0:02:31.4]} 18.
Rac1 {[%clk 0:02:29.6]} 18... Nd5 {[%clk 0:02:17.6]} 19. Qe4 {[%clk 0:02:28.9]}
19... Rae8 {[%clk 0:02:13.9]} 20. Nc5 {[%clk 0:02:22]} 20... Rf5 {[%clk
0:01:42]} 21. Bd2 {[%clk 0:02:05.6]} 21... Nf6 {[%clk 0:01:11.8]} 22. Qe3 {[%clk
0:01:37.1]} 22... Re5 {[%clk 0:01:10.8]} 23. Na6 {[%clk 0:01:12]} 23... Qb7
{[%clk 0:01:04.3]} 24. Qd3 {[%clk 0:00:55.1]} 24... Rd5 {[%clk 0:01:03.4]} 25.
Qe2 {[%clk 0:00:53.7]} 25... Qxb2 {[%clk 0:01:03.1]} 26. Rfd1 {[%clk 0:00:40.9]}
26... Bf4 {[%clk 0:00:55.2]} 27. Rb1 {[%clk 0:00:32.1]} 27... Qc2 {[%clk
0:00:31.3]} 28. Nb4 {[%clk 0:00:30.8]} 28... Rxd2 {[%clk 0:00:31.4]} 29. Qf3
{[%clk 0:00:12.5]} 29... Rxd1+ {[%clk 0:00:31.2]} 30. Rxd1 {[%clk 0:00:12]}
30... Qe4 {[%clk 0:00:31.8]} 31. Qxe4 {[%clk 0:00:08.1]} 31... Nxe4 {[%clk
0:00:32.7]} 32. Rd4 {[%clk 0:00:08.1]} 32... Nc3 {[%clk 0:00:18.7]} 33. Kf1
{[%clk 0:00:04.3]} 33... e5 {[%clk 0:00:15.7]} 34. Rc4 {[%clk 0:00:03.4]} 34...
Nd5 {[%clk 0:00:13.2]} 35. Nxc6 {[%clk 0:00:02.7]} 35... Rc8 {[%clk 0:00:13.6]}
36. Nxe5 {[%clk 0:00:01.7]} 36... Rxc4 {[%clk 0:00:12.7]} 37. Nxc4 {[%clk
0:00:02.6]} 37... Bc1 {[%clk 0:00:13.2]} 38. Ke2 {[%clk 0:00:01.8]} 38... Nf4+
{[%clk 0:00:13.3]} 39. Kf3 {[%clk 0:00:01.7]} 39... Nd3 {[%clk 0:00:13.4]} 40.
g3 {[%clk 0:00:02]} 40... Nb2 {[%clk 0:00:13.6]} 41. Nd6 {[%clk 0:00:01.2]}
41... Na4 {[%clk 0:00:12.3]} 42. Nb5 {[%clk 0:00:01.5]} 42... a6 {[%clk
0:00:11.6]} 43. Nc7 {[%clk 0:00:01.5]} 43... Nc5 {[%clk 0:00:11.8]} 0-1

[Event "*** Titled Tuesday Blitz"]
[Site "Chess.com"]
[Date "2021.02.02"]
[Round "3"]
[White "chessmadara"]
[Black "Chimpinha"]
[Result "1/2-1/2"]
[WhiteElo "2146"]
[BlackElo "2392"]
[TimeControl "180+1"]
[EndTime "10:31:39 PST"]
[Termination "Game drawn by repetition"]

1. e4 {[%clk 0:03:00.9]} 1... e6 {[%clk 0:02:59.3]} 2. d4 {[%clk 0:03:00.2]}
2... d5 {[%clk 0:02:58]} 3. Nc3 {[%clk 0:03:00.7]} 3... Nf6 {[%clk 0:02:48.4]}
4. Bg5 {[%clk 0:03:00.3]} 4... dxe4 {[%clk 0:02:47]} 5. Nxe4 {[%clk 0:02:59.8]}
5... Be7 {[%clk 0:02:47.5]} 6. Nxf6+ {[%clk 0:02:41.8]} 6... Bxf6 {[%clk
0:02:45.6]} 7. Bxf6 {[%clk 0:02:42.2]} 7... Qxf6 {[%clk 0:02:45.3]} 8. Nf3
{[%clk 0:02:42.7]} 8... c5 {[%clk 0:02:37.6]} 9. Bd3 {[%clk 0:02:42.3]} 9... Nc6
{[%clk 0:02:25.9]} 10. Bb5 {[%clk 0:02:05.3]} 10... Bd7 {[%clk 0:02:04.5]} 11.
Bxc6 {[%clk 0:01:36.2]} 11... Bxc6 {[%clk 0:02:02.4]} 12. dxc5 {[%clk
0:01:06.2]} 12... Qxb2 {[%clk 0:01:52.6]} 13. O-O {[%clk 0:01:04.6]} 13... Rd8
{[%clk 0:01:42.9]} 14. Qb1 {[%clk 0:00:49.6]} 14... Qf6 {[%clk 0:01:12.9]} 15.
Qb3 {[%clk 0:00:47.5]} 15... O-O {[%clk 0:01:03.3]} 16. Rfd1 {[%clk 0:00:44.9]}
16... Bxf3 {[%clk 0:00:58]} 17. Qxf3 {[%clk 0:00:43.5]} 17... Qxf3 {[%clk
0:00:57.2]} 18. gxf3 {[%clk 0:00:44.4]} 18... g6 {[%clk 0:00:35.2]} 19. a4
{[%clk 0:00:38.2]} 19... Kg7 {[%clk 0:00:29.7]} 20. a5 {[%clk 0:00:37.9]} 20...
Kf6 {[%clk 0:00:17.7]} 21. a6 {[%clk 0:00:34.6]} 21... bxa6 {[%clk 0:00:16.1]}
22. Rxd8 {[%clk 0:00:34]} 22... Rxd8 {[%clk 0:00:15.7]} 23. Rxa6 {[%clk
0:00:34.4]} 23... Rc8 {[%clk 0:00:16.2]} 24. c6 {[%clk 0:00:30.9]} 24... Ke5
{[%clk 0:00:15.6]} 25. Kg2 {[%clk 0:00:31.2]} 25... h5 {[%clk 0:00:15]} 26. h4
{[%clk 0:00:30.3]} 26... f6 {[%clk 0:00:14.3]} 27. Kg3 {[%clk 0:00:27.9]} 27...
Rc7 {[%clk 0:00:14.5]} 28. f4+ {[%clk 0:00:24.7]} 28... Kd5 {[%clk 0:00:14.2]}
29. Kf3 {[%clk 0:00:22.8]} 29... Rxc6 {[%clk 0:00:14.2]} 30. Rxa7 {[%clk
0:00:22.7]} 30... Rc3+ {[%clk 0:00:13.6]} 31. Kg2 {[%clk 0:00:21.5]} 31... Rxc2
{[%clk 0:00:13.7]} 32. Rg7 {[%clk 0:00:21.2]} 32... Ke4 {[%clk 0:00:11.6]} 33.
Rxg6 {[%clk 0:00:21.3]} 33... Kf5 {[%clk 0:00:11.1]} 34. Rh6 {[%clk 0:00:21.5]}
34... Kxf4 {[%clk 0:00:10.9]} 35. Rxf6+ {[%clk 0:00:21.4]} 35... Kg4 {[%clk
0:00:10.4]} 36. Rxe6 {[%clk 0:00:20.6]} 36... Kxh4 {[%clk 0:00:10.6]} 37. Re4+
{[%clk 0:00:18.8]} 37... Kg5 {[%clk 0:00:10.7]} 38. Re5+ {[%clk 0:00:19.1]}
38... Kg6 {[%clk 0:00:10.9]} 39. Re6+ {[%clk 0:00:19.3]} 39... Kg5 {[%clk
0:00:11]} 40. Re5+ {[%clk 0:00:19.3]} 40... Kg6 {[%clk 0:00:11.1]} 41. Re6+
{[%clk 0:00:19.4]} 41... Kf5 {[%clk 0:00:11.4]} 42. Rh6 {[%clk 0:00:18.3]} 42...
Kg5 {[%clk 0:00:11.5]} 43. Ra6 {[%clk 0:00:17.3]} 43... h4 {[%clk 0:00:12]} 44.
Ra5+ {[%clk 0:00:16]} 44... Kg4 {[%clk 0:00:12]} 45. Ra4+ {[%clk 0:00:16]} 45...
Kg5 {[%clk 0:00:12.1]} 46. Ra5+ {[%clk 0:00:16.3]} 46... Kg4 {[%clk 0:00:12.1]}
47. Ra4+ {[%clk 0:00:16.4]} 47... Kg5 {[%clk 0:00:12.1]} 48. Ra5+ {[%clk
0:00:16.5]} 1/2-1/2

[Event "*** Titled Tuesday Blitz"]
[Site "Chess.com"]
[Date "2021.02.02"]
[Round "3"]
[White "Mambastik-Fantastic"]
[Black "Alex_Molchanov"]
[Result "1-0"]
[WhiteElo "2266"]
[BlackElo "2471"]
[TimeControl "180+1"]
[EndTime "10:31:39 PST"]
[Termination "Mambastik-Fantastic won by checkmate"]

1. e4 {[%clk 0:03:00.9]} 1... c5 {[%clk 0:02:59.6]} 2. Nf3 {[%clk 0:02:58.5]}
2... Nc6 {[%clk 0:02:59.6]} 3. d4 {[%clk 0:02:58]} 3... cxd4 {[%clk 0:03:00.5]}
4. Nxd4 {[%clk 0:02:57]} 4... Nf6 {[%clk 0:03:00.4]} 5. Nc3 {[%clk 0:02:56.7]}
5... e5 {[%clk 0:02:59.2]} 6. Ndb5 {[%clk 0:02:56.7]} 6... d6 {[%clk 0:02:58.4]}
7. Bg5 {[%clk 0:02:55.9]} 7... a6 {[%clk 0:02:56.7]} 8. Na3 {[%clk 0:02:55.9]}
8... b5 {[%clk 0:02:54.8]} 9. Nd5 {[%clk 0:02:56.1]} 9... Be7 {[%clk 0:02:54.7]}
10. Bxf6 {[%clk 0:02:56.4]} 10... gxf6 {[%clk 0:02:39.7]} 11. c3 {[%clk
0:02:57.3]} 11... Be6 {[%clk 0:02:39.4]} 12. Nc2 {[%clk 0:02:52.8]} 12... f5
{[%clk 0:02:35.4]} 13. Qh5 {[%clk 0:02:50.9]} 13... fxe4 {[%clk 0:02:27]} 14.
Nce3 {[%clk 0:02:50.4]} 14... Bg5 {[%clk 0:02:02.8]} 15. g4 {[%clk 0:02:27.9]}
15... Bxe3 {[%clk 0:01:59.5]} 16. Nxe3 {[%clk 0:02:27.4]} 16... Ne7 {[%clk
0:01:54.4]} 17. O-O-O {[%clk 0:02:25.7]} 17... Bxa2 {[%clk 0:01:38.7]} 18. g5
{[%clk 0:02:17.1]} 18... Be6 {[%clk 0:01:34]} 19. Bh3 {[%clk 0:02:15.2]} 19...
Bxh3 {[%clk 0:01:26.1]} 20. Qxh3 {[%clk 0:02:13.9]} 20... Qd7 {[%clk 0:01:25.1]}
21. Qg2 {[%clk 0:01:38.9]} 21... Qb7 {[%clk 0:01:07]} 22. Ng4 {[%clk 0:01:36.2]}
22... Qc6 {[%clk 0:00:44.5]} 23. Nf6+ {[%clk 0:01:34.6]} 23... Kf8 {[%clk
0:00:44.4]} 24. Qh3 {[%clk 0:01:22.8]} 24... Ng8 {[%clk 0:00:16.2]} 25. Nxh7+
{[%clk 0:00:49.6]} 25... Kg7 {[%clk 0:00:15.3]} 26. g6 {[%clk 0:00:38]} 26...
fxg6 {[%clk 0:00:13.4]} 27. Qe6 {[%clk 0:00:34.6]} 27... Rxh7 {[%clk 0:00:12.9]}
28. Rxd6 {[%clk 0:00:34]} 28... Qe8 {[%clk 0:00:12.3]} 29. Rd7+ {[%clk
0:00:26.6]} 29... Kh8 {[%clk 0:00:10.6]} 30. Rxh7+ {[%clk 0:00:25.4]} 30... Kxh7
{[%clk 0:00:11]} 31. Qh3+ {[%clk 0:00:25]} 31... Kg7 {[%clk 0:00:10.7]} 32. Rd1
{[%clk 0:00:24.9]} 32... Nf6 {[%clk 0:00:10.8]} 33. Qg3 {[%clk 0:00:20.9]} 33...
Rd8 {[%clk 0:00:10.7]} 34. Rg1 {[%clk 0:00:20.2]} 34... Qf7 {[%clk 0:00:09.3]}
35. Kb1 {[%clk 0:00:18.6]} 35... Re8 {[%clk 0:00:09]} 36. h4 {[%clk 0:00:18.4]}
36... Nh5 {[%clk 0:00:06.7]} 37. Qe3 {[%clk 0:00:16.4]} 37... Nf4 {[%clk
0:00:06.4]} 38. Rg5 {[%clk 0:00:14.9]} 38... Qf6 {[%clk 0:00:04.3]} 39. Qa7+
{[%clk 0:00:14]} 39... Re7 {[%clk 0:00:04.7]} 40. Qa8 {[%clk 0:00:13.2]} 40...
Nd3 {[%clk 0:00:04.8]} 41. Qxe4 {[%clk 0:00:11.3]} 41... Qf4 {[%clk 0:00:04]}
42. Qxg6+ {[%clk 0:00:11]} 42... Kf8 {[%clk 0:00:03.4]} 43. Qg8# {[%clk
0:00:11.2]} 1-0

[Event "*** Titled Tuesday Blitz"]
[Site "Chess.com"]
[Date "2021.02.02"]
[Round "3"]
[White "DrVelja"]
[Black "chessdjw"]
[Result "1-0"]
[WhiteElo "2898"]
[BlackElo "2590"]
[TimeControl "180+1"]
[EndTime "10:31:40 PST"]
[Termination "DrVelja won on time"]

1. e4 {[%clk 0:03:00.9]} 1... e5 {[%clk 0:02:59.2]} 2. Nf3 {[%clk 0:03:00.7]}
2... Nc6 {[%clk 0:02:59.7]} 3. Bb5 {[%clk 0:03:01.3]} 3... a6 {[%clk 0:02:59.6]}
4. Ba4 {[%clk 0:03:01.8]} 4... Nf6 {[%clk 0:02:59.6]} 5. O-O {[%clk 0:03:02.4]}
5... Be7 {[%clk 0:02:58.9]} 6. d3 {[%clk 0:03:02.5]} 6... b5 {[%clk 0:02:57.4]}
7. Bb3 {[%clk 0:03:03.1]} 7... Bb7 {[%clk 0:02:56.3]} 8. Nc3 {[%clk 0:03:03.2]}
8... O-O {[%clk 0:02:55.2]} 9. a3 {[%clk 0:03:03.7]} 9... Nd4 {[%clk 0:02:55.3]}
10. Nxd4 {[%clk 0:03:01.5]} 10... exd4 {[%clk 0:02:55.5]} 11. Ne2 {[%clk
0:03:02.4]} 11... c5 {[%clk 0:02:55.8]} 12. Ng3 {[%clk 0:03:03]} 12... d5 {[%clk
0:02:54.9]} 13. e5 {[%clk 0:03:00.5]} 13... Nd7 {[%clk 0:02:54.2]} 14. Re1
{[%clk 0:03:01.1]} 14... Re8 {[%clk 0:02:43]} 15. Qg4 {[%clk 0:02:54]} 15... Bf8
{[%clk 0:02:37.8]} 16. Bf4 {[%clk 0:02:52.5]} 16... c4 {[%clk 0:02:36.5]} 17.
Ba2 {[%clk 0:02:52]} 17... Re6 {[%clk 0:02:20.2]} 18. Nf5 {[%clk 0:02:42.8]}
18... Rg6 {[%clk 0:02:15.9]} 19. Qf3 {[%clk 0:02:37.7]} 19... Qb6 {[%clk
0:02:09.5]} 20. Re2 {[%clk 0:02:17.9]} 20... Re8 {[%clk 0:02:07.9]} 21. Rae1
{[%clk 0:02:18.3]} 21... Rge6 {[%clk 0:01:51.9]} 22. Qg3 {[%clk 0:01:49.7]}
22... Rg6 {[%clk 0:01:29.5]} 23. Qf3 {[%clk 0:01:49.1]} 23... a5 {[%clk
0:01:25.5]} 24. h4 {[%clk 0:01:48.8]} 24... b4 {[%clk 0:01:15.9]} 25. h5 {[%clk
0:01:47.2]} 25... Rge6 {[%clk 0:01:14.8]} 26. dxc4 {[%clk 0:01:36.1]} 26... dxc4
{[%clk 0:01:14.2]} 27. Qg3 {[%clk 0:01:36.2]} 27... b3 {[%clk 0:00:44.8]} 28.
cxb3 {[%clk 0:01:37.1]} 28... d3 {[%clk 0:00:45]} 29. Rd2 {[%clk 0:01:29.9]}
29... Nc5 {[%clk 0:00:42.3]} 30. bxc4 {[%clk 0:01:19.8]} 30... Ne4 {[%clk
0:00:42.2]} 31. Rxe4 {[%clk 0:01:20.4]} 31... Bxe4 {[%clk 0:00:42.6]} 32. c5
{[%clk 0:01:21.3]} 32... Qb7 {[%clk 0:00:16.4]} 33. Bxe6 {[%clk 0:01:20.1]}
33... Rxe6 {[%clk 0:00:17.3]} 34. Nd6 {[%clk 0:01:17]} 34... Bxd6 {[%clk
0:00:15.5]} 35. exd6 {[%clk 0:01:17.3]} 35... h6 {[%clk 0:00:15.2]} 36. Be5
{[%clk 0:01:00.8]} 36... f6 {[%clk 0:00:14.6]} 37. Bc3 {[%clk 0:01:01.3]} 37...
Qd5 {[%clk 0:00:13.8]} 38. b4 {[%clk 0:00:53.9]} 38... axb4 {[%clk 0:00:12.3]}
39. axb4 {[%clk 0:00:54.8]} 39... Bxg2 {[%clk 0:00:08.9]} 40. Rxd3 {[%clk
0:00:44.5]} 40... Qxh5 {[%clk 0:00:05.1]} 41. Kxg2 {[%clk 0:00:42.5]} 41... Re4
{[%clk 0:00:04.3]} 42. d7 {[%clk 0:00:42.1]} 42... Rg4 {[%clk 0:00:03.5]} 43.
d8=Q+ {[%clk 0:00:43]} 43... Kh7 {[%clk 0:00:03.6]} 44. Qd5 {[%clk 0:00:41.4]}
44... Rxg3+ {[%clk 0:00:03.3]} 45. Kxg3 {[%clk 0:00:40.4]} 45... Qg6+ {[%clk
0:00:03.2]} 46. Kf3 {[%clk 0:00:40]} 46... f5 {[%clk 0:00:04.1]} 47. Ke2 {[%clk
0:00:38.9]} 47... Qg4+ {[%clk 0:00:04.1]} 48. Qf3 {[%clk 0:00:39.1]} 48... Qg6
{[%clk 0:00:04.3]} 49. Rd5 {[%clk 0:00:39]} 49... Qe6+ {[%clk 0:00:04.6]} 50.
Kd3 {[%clk 0:00:39.6]} 50... g6 {[%clk 0:00:04.1]} 51. b5 {[%clk 0:00:39.4]}
51... h5 {[%clk 0:00:03.4]} 52. c6 {[%clk 0:00:39.6]} 52... Qf7 {[%clk
0:00:03.2]} 53. Rd7 {[%clk 0:00:39.1]} 1-0

[Event "*** Titled Tuesday Blitz"]
[Site "Chess.com"]
[Date "2021.02.02"]
[Round "3"]
[White "Ajedrez_con_German"]
[Black "Flopezin"]
[Result "1-0"]
[WhiteElo "2620"]
[BlackElo "2418"]
[TimeControl "180+1"]
[EndTime "10:31:40 PST"]
[Termination "Ajedrez_con_German won on time"]

1. d4 {[%clk 0:03:00.9]} 1... Nf6 {[%clk 0:02:58]} 2. Bf4 {[%clk 0:02:58.9]}
2... e6 {[%clk 0:02:56.4]} 3. e3 {[%clk 0:02:56]} 3... c5 {[%clk 0:02:57.3]} 4.
c3 {[%clk 0:02:55.7]} 4... b6 {[%clk 0:02:44.9]} 5. Nf3 {[%clk 0:02:55.2]} 5...
Bb7 {[%clk 0:02:45.8]} 6. Nbd2 {[%clk 0:02:55.5]} 6... Be7 {[%clk 0:02:41.3]} 7.
Bd3 {[%clk 0:02:55.4]} 7... cxd4 {[%clk 0:02:42.1]} 8. exd4 {[%clk 0:02:55.2]}
8... d6 {[%clk 0:02:39.7]} 9. O-O {[%clk 0:02:51.3]} 9... O-O {[%clk 0:02:35]}
10. Qe2 {[%clk 0:02:51.1]} 10... Nbd7 {[%clk 0:02:32.3]} 11. Rfe1 {[%clk
0:02:49.8]} 11... Re8 {[%clk 0:02:28.1]} 12. h3 {[%clk 0:02:49.7]} 12... a6
{[%clk 0:02:23.6]} 13. Rad1 {[%clk 0:02:46.2]} 13... Qc7 {[%clk 0:02:20.4]} 14.
Ne4 {[%clk 0:02:45.9]} 14... Nxe4 {[%clk 0:02:19.5]} 15. Bxe4 {[%clk 0:02:46.8]}
15... Bxe4 {[%clk 0:02:19.5]} 16. Qxe4 {[%clk 0:02:47.7]} 16... Nf6 {[%clk
0:02:19.6]} 17. Qe2 {[%clk 0:02:46.8]} 17... b5 {[%clk 0:02:18.3]} 18. a3 {[%clk
0:02:46.4]} 18... Rac8 {[%clk 0:02:17.4]} 19. Bg5 {[%clk 0:02:43.2]} 19... Qc4
{[%clk 0:02:14]} 20. Nd2 {[%clk 0:02:30.9]} 20... Qxe2 {[%clk 0:02:12.5]} 21.
Rxe2 {[%clk 0:02:31.8]} 21... Nd5 {[%clk 0:02:11.5]} 22. Bxe7 {[%clk 0:02:28.9]}
22... Rxe7 {[%clk 0:02:12.4]} 23. Ne4 {[%clk 0:02:25.3]} 23... Rd7 {[%clk
0:01:58.7]} 24. g3 {[%clk 0:02:25.2]} 24... h6 {[%clk 0:01:51.6]} 25. h4 {[%clk
0:02:14.1]} 25... Kf8 {[%clk 0:01:50]} 26. Kf1 {[%clk 0:02:11.2]} 26... Ke7
{[%clk 0:01:49]} 27. Rc2 {[%clk 0:02:06.4]} 27... Nf6 {[%clk 0:01:47.5]} 28.
Nxf6 {[%clk 0:02:05.8]} 28... Kxf6 {[%clk 0:01:48.2]} 29. Ke2 {[%clk 0:02:05]}
29... d5 {[%clk 0:01:45.4]} 30. Kd3 {[%clk 0:02:00.1]} 30... Rdc7 {[%clk
0:01:45]} 31. b4 {[%clk 0:01:51.8]} 31... Kf5 {[%clk 0:01:26.2]} 32. a4 {[%clk
0:01:43.6]} 32... a5 {[%clk 0:01:07.8]} 33. bxa5 {[%clk 0:01:37]} 33... bxa4
{[%clk 0:01:06.1]} 34. Ra1 {[%clk 0:01:29.7]} 34... Rc4 {[%clk 0:01:06.2]} 35.
Rb1 {[%clk 0:01:21.2]} 35... Ra8 {[%clk 0:00:52.5]} 36. Rb4 {[%clk 0:01:19.5]}
36... Rac8 {[%clk 0:00:11.3]} 37. a6 {[%clk 0:00:56]} 37... Ra8 {[%clk
0:00:09.7]} 38. Rxc4 {[%clk 0:00:52]} 38... dxc4+ {[%clk 0:00:10.5]} 39. Kxc4
{[%clk 0:00:52.6]} 39... Rxa6 {[%clk 0:00:11.4]} 40. Kb5 {[%clk 0:00:49.2]}
40... Ra8 {[%clk 0:00:10.2]} 41. f3 {[%clk 0:00:47.5]} 41... e5 {[%clk
0:00:09.1]} 42. d5 {[%clk 0:00:35.2]} 42... e4 {[%clk 0:00:06.5]} 43. fxe4+
{[%clk 0:00:35.3]} 43... Kxe4 {[%clk 0:00:07.4]} 44. c4 {[%clk 0:00:32.1]} 44...
Kd4 {[%clk 0:00:04.4]} 45. d6 {[%clk 0:00:27.5]} 1-0